Cogmind - Beta 9.1 *** ADVENTURER MODE // 2019.11.08 @ 17:35:56 Player: ALPHA Result: Self-destructed Performance ------------- Evolutions (2) 1000 Regions Visited (4) 800 Robots Destroyed (22) 110 Value Destroyed (420) 420 Prototype IDs (0) 0 Alien Tech Used (0) 0 Bonus (-1) -1 TOTAL SCORE: 2329 Bonus ------- Follower Combat Kills 14 Friendly Fire -15 Cogmind --------- Core Integrity 459/550 Matter 98/300 Energy 0/100 System Corruption 0% Temperature Cool (446) Location -8/Materials Parts ------- Power (2) Propulsion (3) Utility (4) ECM Suite Improved Light Armor Plating Weapon (2) Particle Gun Particle Gun Inventory (4) Light Assault Rifle Improved Datajack Peak State ------------ Power Light Deuterium Engine Propulsion Flight Unit Flight Unit VTOL Module Utility ECM Suite Improved Light Armor Plating Weapon Particle Gun Improved Datajack Inventory Light Assault Rifle [Rating: 16] Favorites ----------- Power Ion Engine Engine Ion Engine Propulsion Flight Unit Treads Light Treads Wheel Wheel Flight Unit Flight Unit Utility Improved Terrain Scanner Device Improved Terrain Scanner Storage Small Storage Unit Processor Seismic Analyzer Protection Improved Light Armor Plating Weapon Assault Rifle Energy Gun EM Pulse Gun Ballistic Gun Assault Rifle Launcher Grenade Launcher Special Melee Weapon Improved Datajack Build | -11 -10 -10 -9 -8 ------- Run | Scr Mat Min Mat Mat Slots Evolved 4 | . . . 2 2 Power 1 | . . . . 1 Propulsion 1 | . . . 1 . Utility 2 | . . . 1 1 Weapon . | . . . . . Parts Attached 37 | 14 1 6 6 10 Power 5 | 2 . 1 . 2 Engine 5 | 2 . 1 . 2 Core . | . . . . . Reactor . | . . . . . Propulsion 13 | 6 . 2 2 3 Treads 4 | 4 . . . . Leg . | . . . . . Wheel 2 | 2 . . . . Hover . | . . . . . Flight 7 | . . 2 2 3 Utility 7 | 3 . 2 1 1 Device 3 | 1 . 1 1 . Storage 1 | 1 . . . . Processor 1 | 1 . . . . Hackware . | . . . . . Protection 2 | . . 1 . 1 Artifact . | . . . . . Weapon 12 | 3 1 1 3 4 Energy Gun 4 | . . 1 1 2 Energy Cannon . | . . . . . Ballistic Gun 4 | 3 . . 1 . Ballistic Cannon . | . . . . . Launcher 2 | . . . 1 1 Special Weapon . | . . . . . Impact Weapon . | . . . . . Slashing Weapon . | . . . . . Piercing Weapon . | . . . . . Special Melee Weapon 2 | . 1 . . 1 Unidentified Prototypes . | . . . . . Parts Lost 9 | . 1 . . 8 Power 1 | . . . . 1 Propulsion 4 | . . . . 4 Utility 1 | . . . . 1 Weapon 3 | . 1 . . 2 Highest Loss Streak 4 | . 1 . . 4 Average Slot Usage (%) 82 | . 98 88 83 64 Engine 11 | . 14 14 11 6 Treads 9 | . 28 6 . . Flight 17 | . . 21 33 24 Device 14 | . 14 17 23 10 Processor 5 | . 14 4 . . Protection 2 | . . . . 6 Energy Gun 5 | . . 12 1 6 Ballistic Gun 10 | . 20 11 11 1 Launcher 1 | . . . 3 4 Special Melee Weapon 3 | . 6 . . 4 Naked Turns . | . . . . . Heaviest Build 15 | 13 9 10 9 15 Greatest Support 40 | 40 40 40 12 13 Greatest Overweight (x) 3 | . . 2 . 3 Average Overweight (x) . | . . . . . Largest Inventory Capacity 6 | 6 4 4 4 4 Average Capacity 4 | 5 4 4 4 4 Most Carried 6 | 6 4 4 4 4 Average Carried 3 | 3 3 3 3 2 Final Capacity 4 | 4 4 4 4 4 Final Carried 4 | 3 4 4 3 2 Class Distribution -------------------- 90% | Mutant 9% | Scavenger-Mutant Dominant Class ---------------- Mutant | -10/Materials Mutant | -10/Mines Mutant | -9/Materials Mutant | -8/Materials Resources | -11 -10 -10 -9 -8 ----------- Run | Scr Mat Min Mat Mat Matter Collected 506 | 281 68 96 . 61 Remotely . | . . . . . Salvage Created 371 | 41 68 48 . 214 Parts 32 | 7 6 6 . 13 Haulers Intercepted . | . . . . . Recyclers Shooed . | . . . . . Parts Field Recycled . | . . . . . Retrieved Matter . | . . . . . Parts Self-Destructed . | . . . . . Prevented . | . . . . . Kills | -11 -10 -10 -9 -8 ------- Run | Scr Mat Min Mat Mat Combat Hostiles Destroyed 17 | . 1 3 . 13 Guns 8 | . 1 3 . 4 AOE 9 | . . . . 9 Classes Destroyed 5 | 1 2 1 . 1 Worker 2 | . . . . 2 Builder 1 | . 1 . . . Tunneler 2 | 2 . . . . Swarmer 11 | . . 3 . 8 Grunt 6 | . 1 . . 5 Best Kill Streak 8 | 1 1 3 . 8 Combat Bots Only 8 | . 1 3 . 8 Max Kills in Single Turn 3 | 1 1 1 . 3 Gunslinging . | . . . . . Exploded 3 | . . . . 3 Melee . | . . . . . Uniques/NPCs Destroyed . | . . . . . Combat | -11 -10 -10 -9 -8 -------- Run | Scr Mat Min Mat Mat Damage Taken 1020 | . 176 154 50 640 Core 191 | . 20 61 19 91 Absorbed by Shields . | . . . . . Core Remaining (%) 87 | 100 . 67 95 . Volleys Fired 47 | 3 6 9 1 28 Largest 2 | 2 1 2 2 2 Hottest 130 | 40 20 60 65 130 Shots Fired 63 | 5 6 11 2 39 Gun 49 | 5 6 11 2 25 Cannon . | . . . . . Launcher 14 | . . . . 14 Special . | . . . . . Kinetic 19 | 5 6 5 1 2 Thermal 21 | . . . . 21 Explosive 14 | . . . . 14 Electromagnetic 9 | . . 6 1 2 Robot Hit Streak 22 | 4 6 4 1 22 Robot Miss Streak 3 | . 1 2 2 3 Penetration Max . | . . . . . Secondary Targets 2 | . . 1 . 1 Max Gunslinging Chain 1 | . . 1 . 1 Shots Hit Robots 51 | 4 7 6 1 33 Core Hits 36 | 2 3 4 . 27 Critical Hits . | . . . . . Critical Kills . | . . . . . Critical Parts Destroyed . | . . . . . Melee Attacks 7 | . 3 . . 4 Impact . | . . . . . Slashing . | . . . . . Piercing . | . . . . . Sneak Attacks 5 | . 3 . . 2 Combat Hostiles . | . . . . . Follow-up Attacks . | . . . . . Damage Inflicted 1284 | 39 60 81 10 1094 Guns 532 | 39 60 81 10 342 Cannons . | . . . . . Explosions 752 | . . . . 752 Melee . | . . . . . Ramming . | . . . . . Kinetic 143 | 39 60 26 10 8 Thermal 286 | . . . . 286 Explosive 752 | . . . . 752 Electromagnetic 103 | . . 55 . 48 Impact . | . . . . . Slashing . | . . . . . Piercing . | . . . . . Highest Corruption . | . . . . . Average Corruption . | . . . . . Corruption Purged . | . . . . . Overload Shots . | . . . . . Overflow Damage 21 | . . . . 21 Projectiles . | . . . . . Explosions 21 | . . . . 21 Melee . | . . . . . Knockbacks . | . . . . . Impact . | . . . . . Kinetic . | . . . . . Secondary . | . . . . . Self-Inflicted Damage 7 | . . . . 7 Shots 1 | . . . . 1 Rammed . | . . . . . Targets Rammed . | . . . . . Kicked . | . . . . . Crushed . | . . . . . Highest Temperature 437 | . . 12 22 437 Average Temperature 108 | . . 7 11 128 Received Heat Transfer 270 | . 12 . 6 252 Effects 1 | . . . . 1 Energy Bleed 1 | . . . . 1 Siege Activations . | . . . . . Robots Corrupted . | . . . . . Combat Hostiles . | . . . . . Parts Fried . | . . . . . Impact Corruptions . | . . . . . Robots Melted . | . . . . . Combat Hostiles . | . . . . . Parts Melted . | . . . . . Heat Transferred 703 | . . . . 703 Parts Sabotaged . | . . . . . Parts Stolen . | . . . . . Parts Stripped . | . . . . . Power Chain Reactions . | . . . . . Missiles Intercepted . | . . . . . Alert | -11 -10 -10 -9 -8 ------- Run | Scr Mat Min Mat Mat Peak Influence 379 | 10 30 86 88 379 Average Influence 91 | 5 13 67 53 246 Maximum Alert Level 1 | . . . . 1 Low Security (%) 78 | . . . . . Level 1 21 | . . . . . Level 2 . | . . . . . Level 3 . | . . . . . Level 4 . | . . . . . Level 5 . | . . . . . High Security . | . . . . . Max Security . | . . . . . Squads Dispatched 1 | . . . . 1 Investigation . | . . . . . Extermination . | . . . . . Reinforcement 1 | . . . . 1 Assault . | . . . . . Garrison . | . . . . . Intercept . | . . . . . Construction Impeded . | . . . . . Haulers Reinforced . | . . . . . Stealth | -11 -10 -10 -9 -8 --------- Run | Scr Mat Min Mat Mat Distress Signals . | . . . . . Communications Jammed . | . . . . . Distress Signals . | . . . . . Times Spotted 61 | . 7 9 6 39 Peak Tracking Total 9 | . 6 3 6 9 Tactical Retreats 6 | . . 1 . 5 Traps | -11 -10 -10 -9 -8 ------- Run | Scr Mat Min Mat Mat Traps Triggered . | . . . . . Indirectly . | . . . . . Trap Hack Attempts . | . . . . . Triggered . | . . . . . Disarmed . | . . . . . Reprogrammed . | . . . . . Reused . | . . . . . Traps Extracted . | . . . . . Installed . | . . . . . Triggered . | . . . . . Machines | -11 -10 -10 -9 -8 ---------- Run | Scr Mat Min Mat Mat Machines Disabled 2 | . . . . 2 Max in Single Turn 1 | . . . . 1 Machines Sabotaged . | . . . . . Garrisons Compromised . | . . . . . Overloaded Fab Kills . | . . . . . Fab Network Shutdowns . | . . . . . Hacking | -11 -10 -10 -9 -8 --------- Run | Scr Mat Min Mat Mat Machines Accessed 5 | . 2 . 1 2 Terminals 3 | . 1 . 1 1 Fabricators . | . . . . . Repair Stations 1 | . . . . 1 Recycling Units 1 | . 1 . . . Scanalyzers . | . . . . . Garrison Access . | . . . . . Total Hacks 18 | . 4 . 2 12 Successful 11 | . 3 . 1 7 Failed 7 | . 1 . 1 5 Catastrophic . | . . . . . Database Lockouts . | . . . . . Manual . | . . . . . Terminals 10 | . 2 . 2 6 Fabricators . | . . . . . Repair Stations 6 | . . . . 6 Recycling Units 2 | . 2 . . . Scanalyzers . | . . . . . Garrison Access . | . . . . . Terminal Hacks 5 | . 1 . 1 3 Record 1 | . 1 . . . Robot Analysis 2 | . . . . 2 Branch Access Points 1 | . . . . 1 Alert Level 1 | . . . 1 . Fabricator Hacks . | . . . . . Repair Station Hacks 4 | . . . . 4 Scan Component 2 | . . . . 2 Repair 2 | . . . . 2 Recycling Unit Hacks 2 | . 2 . . . Process 1 | . 1 . . . Report Inventory 1 | . 1 . . . Scanalyzer . | . . . . . Garrison Access Hacks . | . . . . . Unauthorized Hacks . | . . . . . Terminals . | . . . . . Fabricators . | . . . . . Repair Stations . | . . . . . Recycling Units . | . . . . . Scanalyzers . | . . . . . Garrison Access . | . . . . . Data Cores Recovered . | . . . . . Used . | . . . . . Hacking Detections 5 | . 2 . 1 2 Full Trace Events 1 | . . . . 1 Feedback Events . | . . . . . Feedback Blocked . | . . . . . Robot Schematics Acquired . | . . . . . Robots Built . | . . . . . Matter . | . . . . . Time . | . . . . . Total Robot Build Rating . | . . . . . Part Schematics Acquired . | . . . . . Parts Built . | . . . . . Matter . | . . . . . Time . | . . . . . Total Part Build Rating . | . . . . . Parts Repaired 2 | . . . . 2 Time 70 | . . . . 70 Parts Recycled . | . . . . . Recycled Matter . | . . . . . Retrieved Matter . | . . . . . Retrieved Components . | . . . . . Parts Scanalyzed . | . . . . . Part Schematics Acquired . | . . . . . Parts Damaged . | . . . . . Bothacking | -11 -10 -10 -9 -8 ------------ Run | Scr Mat Min Mat Mat Used RIF Installer . | . . . . . Robots Hacked 4 | . 1 . . 3 Non-combat 3 | . 1 . . 2 Combat 1 | . . . . 1 Robot Hacks Applied 6 | . 3 . . 3 parse_system 3 | . 1 . . 2 no_distress 2 | . 1 . . 1 find_recycling 1 | . 1 . . . Relay Couplers Released . | . . . . . Robots Rewired . | . . . . . Allies Hacked . | . . . . . Hacks Repelled . | . . . . . Allies | -11 -10 -10 -9 -8 -------- Run | Scr Mat Min Mat Mat Total Allies 3 | . . 3 . . Largest Group 3 | . . 3 . . Highest-Rated Group 40 | . . 40 . . Highest-Rated Ally 16 | . . 16 . . Total Orders . | . . . . . Ally Attacks 13 | . . 13 . . Total Damage 103 | . . 103 . . Kills 2 | . . 2 . . Allies Corrupted . | . . . . . Allies Melted . | . . . . . Intel | -11 -10 -10 -9 -8 ------- Run | Scr Mat Min Mat Mat Robot Analysis Total 2 | . . . . 2 Derelict Logs Recovered 1 | . . 1 . . Drone Launches . | . . . . . Drone Recoveries . | . . . . . Exploration | -11 -10 -10 -9 -8 ------------- Run | Scr Mat Min Mat Mat Turns Passed 1065 | 216 251 226 74 298 Spaces Moved 1264 | 120 143 434 153 414 Core 14 | 14 . . . . Treads 265 | 106 143 16 . . Legs . | . . . . . Wheels . | . . . . . Hover . | . . . . . Flight 985 | . . 418 153 414 Fastest Speed 34 | 50 160 37 34 34 Average Speed 67 | 147 160 43 36 49 Slowest Speed 280 | 160 160 220 37 280 Overloaded Moves . | . . . . . Propulsion Burnouts . | . . . . . Robots Hopped 6 | . . 1 . 5 Cave-ins Triggered . | . . . . . Exploration Rate (%) 33 | 7 24 82 24 31 Regions Visited 4 Branch Regions 1 Pre-discovered Areas . | . . . . . Known Exits Taken . | . . . . . Unknown Exits Taken 4 | 1 1 1 1 . Scrap Searched 3 | . . 3 . . Spaces Dug . | . . . . . Terrain Destroyed 36 | . . . . 36 Melee . | . . . . . Projectile . | . . . . . AOE 36 | . . . . 36 Actions | -11 -10 -10 -9 -8 --------- Run | Scr Mat Min Mat Mat Total 1404 | 154 157 462 171 460 Wait . | . . . . . Move 1248 | 119 142 431 152 404 Hop 6 | . . 1 . 5 Pick Up 36 | 14 3 7 5 7 Fast Attach 2 | . . 1 1 . Attach 22 | 7 1 2 4 8 Detach 2 | . . . 2 . Swap 13 | 7 . 3 1 2 Drop 21 | 4 2 8 5 2 Fire 47 | 3 6 9 1 28 Melee 7 | . 3 . . 4 Ram . | . . . . . Kick . | . . . . . Crush . | . . . . . Escape Stasis . | . . . . . Rewire . | . . . . . Trap . | . . . . . Miscellaneous . | . . . . . Route ------- -11/Scrapyard -10/Materials -10/Mines -9/Materials -8/Materials (discovered 1 exit: Sto) History --------- Turn | Location | Event 3 | -11/Scrapyard | Discovered new exit (range 16) 217 | -11/Scrapyard | Entered Materials 313 | -10/Materials | Build established: Mutant 352 | -10/Materials | Discovered new exit (range 16) 468 | -10/Materials | Entered Mines 471 | -10/Mines | Met a Derelict bent on vengeance 541 | -10/Mines | Assisted by bots powering up and referring to "LRC-V3" 570 | -10/Mines | Discovered new exit (range 6) 618 | -10/Mines | Learned Materials security intel 694 | -10/Mines | Entered Materials 694 | -9/Materials | Evolved 2 slots: Propulsion x1, Utility x1 766 | -9/Materials | Discovered new exit (range 5) 768 | -9/Materials | Entered another Materials area 768 | -8/Materials | Evolved 2 slots: Power x1, Utility x1 854 | -8/Materials | Lost 3 parts (1n1u1w) 858 | -8/Materials | Destroyed 8 combat bots 901 | -8/Materials | Repaired VTOL Module 939 | -8/Materials | Repaired Lgt. Deuterium Engine? 982 | -8/Materials | Identified exit to Storage 1066 | -8/Materials | Self-destructed Last Messages --------------- most exposed core. >>Access(Branch) Found 1 branch access point: (23,10) Storage Map updated. 00989_ G-47 Trooper destroyed. 00993_ Acquired 47 matter. 00997_ Acquired Particle Gun. 01004_ K-01 Serf collects debris. 01018_ K-01 Serf cleans the Neutrino Reactor. 01020_ S-10 Pest destroyed. 01022_ K-01 Serf collects debris. 01036_ VTOL Module destroyed. 01040_ Flight Unit destroyed. 01053_ Lgt. Deuterium Engine destroyed. 01054_ G-47 Trooper destroyed. 01054_ Switching to secondary target: G-47 Trooper. 01056_ Overheating: Energy bleed (-17). 01056_ Flight Unit destroyed. 01057_ G-47 Trooper destroyed. Map ----- +----------------------------------------------------+ | | | | | | | | | ?????????????????????????????????????????????????? | | ?????????????????????????????????????????????????? | | ?????????????????????????????????????????????????? | | ?????????????????????????????????????????????????? | | ?????????????????????????????????????????????????? | | ?????????????????????????????????????????????????? | | ?????????????????????? ?????????????????????????? | | ??????????????????????! ?????????????????????????? | | ?????????????????????? ?????????????????????????? | | ?????????????????????# #????????????????????????? | | ?????????????????????# #????????????????????????? | | ?????????????????????/ +????????????????????????? | | ?????????????????????# #????????????????????????? | | ?????????????????????# #????????????????????????? | | ?????????????????????# #????????????????????????? | | ?????????????????????# #????????????????????????? | | ?????????????????????# #????????????????????????? | | ?????????????????????# #????????????????????????? | | ???????????########### #????????????????????????? | | ???????????# # ##########???????????????? | | ???????????# #Y # #???????????????? | | ???????????# ! # s@ #???????????????? | | ???????????# /ss# #???????????????? | | ???????????# # # = #???????????????? | | ???????????# """ """=# ## #???????????????? | | ???????????# """ """%# ## #???????????????? | | ???????????? """ """ + ## [ #???????????????? | | ?????????????######### ## #???????????????? | | ??????????############ ## #???????????????? | | ??????????# + ###########???????????????? | | ??????????# ## #?????????????????????????? | | ??????????# ??# #?????????????????????????? | | ???????? / ??# #?????????????????????????? | | ??????? # ???# #?##########??????????????? | | ??????????# ? ???# #?# #??????????????? | | ?????????????? ????# #?# """ "#??????????????? | | ??????# ?????? ????# #?# """ "#??????????????? | | ??????# #####+###### ### ! """ "#??????????????? | | ??????# ! = + T#??????????????? | | ?| + * ######### """ "#??????????????? | | ?| ## #???????# """ "#??????????????? | | ??????## """" ##???????# """ "#??????????????? | | ???????# """" #????????# #??????????????? | | ???????# """" #????????#####+###########???????? | | ?????### #?????????# #???????? | | ?????? ########### #???????? | +----------------------------------------------------+ Best States ------------- Heat Dissipation 31 Energy Generation 14 Energy Capacity 250 Matter Stores 300 Matter Capacity 300 Sight Range 16 Terrain Scan Range 16 Terrain Scan Density 60 ECM Strength 1 Armor Coverage 150 Resistance: KI 20 Resistance: TH 20 Resistance: EX 20 Resistance: EM 20 Resistance: I 20 Resistance: S 20 Resistance: P 20 Evasion (%) 63 Recoil Reduction 2 Item Schematics ----------------- None Robot Schematics ------------------ None Fabricated ------------ Nothing Alien Tech Used ----------------- None Achievements -------------- Crack Shot Part-time Mechanic Uninvited Guest Challenges ------------ None Game ------ Seed PowerReflectiveLoader Manual? 0 Play Time 00:39:59 Cumulative 12.6 hours Start 2019.11.08 @ 16:14:24 End 2019.11.08 @ 17:35:56 Sessions 2 Manual Loads 0 Difficulty Adventurer Special Mode None Game No. 15 Rogue 13 Adventurer 1 Explorer 0 Win Type - Total 0 Types 0/0/0/0/0/0/0 Lore% 3 Gallery% 14 Achievement% 1 Wizard Run 0 Options --------- ASCII 0 Keyboard 0 Movement Mouse Keybinds 0 Fullscreen 2 Font 18/Terminus Map View 76x50 Tactical HUD 1 Map Filters NONE Filters NONE Steam 1 RUN: 07014269-6466-4281-b268-f0976ec0ae6d